bitfinex/quotes_BTCUSD_20240901
["timestamp","ask_amount","ask_price","bid_price","bid_amount"]
[1725182111915,0.12687996,58364.0,58363.0,0.24342566]
[1725182113625,0.12687996,58364.0,58363.0,0.24345467]
[1725182113835,0.1,58364.0,58363.0,0.24345467]
[1725182114493,0.1,58364.0,58363.0,0.19193867]
[1725182116019,0.100818,58364.0,58363.0,0.19193867]
[1725182116218,0.100818,58364.0,58363.0,0.1519998]
[1725182117106,0.12769722,58364.0,58363.0,0.1519998]
[1725182118573,0.12769722,58364.0,58363.0,0.20349709]
[1725182118574,0.29903522,58364.0,58363.0,0.20349709]
[1725182119903,0.272156,58364.0,58363.0,0.20349709]
[1725182121447,0.614832,58364.0,58363.0,0.20349709]
[1725182123069,0.64171152,58364.0,58363.0,0.20349709]
[1725182125946,0.29903552,58364.0,58363.0,0.25196738]
[1725182126162,0.02769752,58364.0,58363.0,0.20047009]
[1725182127452,0.02769752,58364.0,58363.0,0.79519365]
[1725182127668,0.02769752,58364.0,58363.0,0.71449309]
[1725182128128,0.02769752,58364.0,58363.0,0.84328309]
[1725182128347,0.02769752,58364.0,58363.0,0.71449309]
[1725182128787,0.000818,58364.0,58363.0,0.71249309]
[1725182129223,0.000818,58364.0,58363.0,0.71449309]
[1725182129437,0.000818,58364.0,58363.0,1.06217509]
[1725182129705,0.000818,58364.0,58363.0,1.05817509]
[1725182129947,0.000818,58364.0,58363.0,1.05617509]
[1725182130155,0.000818,58364.0,58363.0,1.07017509]
[1725182132124,0.001818,58364.0,58363.0,1.08417509]
[1725182132335,0.001818,58364.0,58363.0,1.18707801]
[1725182132992,0.001818,58364.0,58363.0,1.28208009]
[1725182133648,0.001818,58364.0,58363.0,1.28207329]
[1725182136150,0.001818,58364.0,58363.0,1.17917717]
[1725182136593,0.001818,58364.0,58363.0,1.30779732]
[1725182137052,0.001818,58364.0,58363.0,1.65047932]
[1725182138586,0.001818,58364.0,58363.0,1.52185917]
[1725182142290,0.001818,58364.0,58363.0,1.54485917]
[1725182144949,0.001818,58364.0,58363.0,1.55485917]
[1725182151261,0.001818,58364.0,58363.0,1.57096923]
[1725182151484,0.001818,58364.0,58363.0,1.91565123]
[1725182151938,0.001818,58364.0,58363.0,2.06986902]
[1725182152171,0.001818,58364.0,58363.0,1.91565123]
[1725182152656,0.000818,58364.0,58363.0,1.90165123]
[1725182152888,0.000818,58364.0,58363.0,1.88765123]
[1725182153345,0.000818,58364.0,58363.0,1.90165123]
[1725182154067,0.000818,58364.0,58363.0,1.90164984]
[1725182154510,0.000818,58364.0,58363.0,1.91564984]
[1725182156459,0.000818,58364.0,58363.0,2.06980365]
[1725182156694,0.000818,58364.0,58363.0,1.72512165]
[1725182156928,0.000818,58364.0,58363.0,1.70901298]
[1725182157122,0.000818,58364.0,58363.0,1.72512166]
[1725182157843,0.000818,58364.0,58363.0,1.72712166]
[1725182158696,0.000818,58364.0,58363.0,1.72710615]
[1725182160238,0.000818,58364.0,58363.0,1.72710614]
[1725182160736,0.000818,58364.0,58363.0,2.06978814]
[1725182161758,0.000818,58364.0,58363.0,2.06778814]
[1725182162210,0.000818,58364.0,58363.0,2.0677816]
[1725182163101,0.000818,58364.0,58363.0,1.7250996]
[1725182163525,0.000818,58364.0,58363.0,1.7270996]
[1725182164243,0.000818,58364.0,58363.0,1.7250996]
[1725182165712,0.000818,58364.0,58363.0,1.72509961]
[1725182167195,0.000818,58364.0,58363.0,1.72511269]
[1725182169186,0.000818,58364.0,58363.0,1.72511271]
[1725182169363,0.000818,58364.0,58363.0,1.55485917]
[1725182169568,0.000818,58364.0,58363.0,1.57096787]
[1725182171627,0.000818,58364.0,58363.0,1.57296787]
[1725182172339,0.000818,58364.0,58363.0,1.55685917]
[1725182172549,0.000818,58364.0,58363.0,1.57296788]
[1725182173292,0.000818,58364.0,58363.0,2.82776788]
[1725182181019,0.000818,58364.0,58363.0,3.17044988]
[1725182181217,0.000818,58364.0,58363.0,2.82776788]
[1725182181861,0.000818,58364.0,58363.0,3.17044988]
[1725182184874,0.000818,58364.0,58363.0,3.16844988]
[1725182185291,0.000818,58364.0,58363.0,2.82576788]
[1725182185568,0.000818,58364.0,58363.0,2.5856658]
[1725182185771,0.000818,58364.0,58363.0,2.68066907]
[1725182185999,0.000818,58364.0,58363.0,2.835082]
[1725182186413,0.000818,58364.0,58363.0,2.68066907]
[1725182186657,0.000818,58364.0,58363.0,2.24298499]
[1725182186946,0.171306,58375.0,58370.0,0.005]
[1725182187162,0.342588,58380.0,58374.0,0.05147481]
[1725182187380,0.342588,58380.0,58371.0,0.10534463]
[1725182187381,0.342588,58380.0,58375.0,0.05147481]
[1725182187813,0.342588,58380.0,58371.0,0.02813241]
[1725182187814,0.1713,58377.0,58376.0,0.05147481]
[1725182188894,0.54077414,58377.0,58376.0,0.05147481]
[1725182189099,0.54077414,58377.0,58376.0,0.06434351]
[1725182189335,0.54077414,58377.0,58376.0,0.0128687]
[1725182189778,0.61887414,58377.0,58376.0,0.0128687]
[1725182190008,0.61887414,58377.0,58376.0,0.0238687]
[1725182190702,0.61887414,58377.0,58376.0,0.0328687]
[1725182191328,0.61887414,58377.0,58376.0,0.02]
[1725182191542,0.592,58377.0,58376.0,0.02]
[1725182193551,0.592,58377.0,58376.0,0.09723841]
[1725182194193,0.592,58377.0,58376.0,0.09724435]
[1725182194875,0.6188738,58377.0,58376.0,0.09724435]
[1725182196351,0.6188738,58377.0,58376.0,0.02]
[1725182196786,0.9614738,58377.0,58376.0,0.14874059]
[1725182196988,1.0614738,58377.0,58376.0,0.09726955]
[1725182197437,1.0614738,58377.0,58376.0,0.02]
[1725182199117,1.0614738,58377.0,58376.0,0.09726946]
[1725182199332,1.0614738,58377.0,58376.0,0.02]
[1725182200165,1.0614738,58377.0,58376.0,0.09726946]
[1725182200580,1.0614738,58377.0,58376.0,0.0208998]
[1725182200799,1.0346,58377.0,58376.0,0.0208998]
[1725182204066,1.06147517,58377.0,58376.0,0.0208998]
[1725182206841,1.0346,58377.0,58376.0,0.0208998]
[1725182210199,1.06147515,58377.0,58376.0,0.0208998]
[1725182210832,1.0346,58377.0,58376.0,0.0208998]
[1725182216823,0.9828,58377.0,58376.0,0.0208998]
[1725182218732,0.9828,58377.0,58376.0,0.07239413]
[1725182219614,1.3254,58377.0,58376.0,0.07239413]
[1725182219994,1.35227539,58377.0,58376.0,0.07239413]
[1725182221600,1.32597539,58377.0,58376.0,0.0723972]
[1725182222542,1.32597539,58377.0,58376.0,0.0208998]
[1725182223633,1.2991,58377.0,58376.0,0.0208998]
[1725182226978,1.32597522,58377.0,58376.0,0.0208998]
[1725182227691,1.32597522,58377.0,58376.0,0.04101387]
[1725182228552,1.32597522,58377.0,58376.0,0.11825998]
[1725182229753,1.2991,58377.0,58376.0,0.11825998]
[1725182230772,1.2991,58377.0,58376.0,0.09814591]
[1725182230972,0.9565,58377.0,58376.0,0.09814591]
[1725182232676,0.6139,58377.0,58376.0,0.16294591]
[1725182232909,0.000818,58378.0,58377.0,0.6567]
[1725182233124,0.000818,58378.0,58377.0,0.53297806]
[1725182233350,0.000818,58378.0,58377.0,0.36167806]
[1725182233558,0.000818,58378.0,58377.0,0.87557806]
[1725182234387,0.000818,58378.0,58377.0,0.88357806]
[1725182236277,0.02769104,58378.0,58377.0,0.88357806]
[1725182236486,0.02769104,58378.0,58377.0,0.89257806]
[1725182238391,0.02769104,58378.0,58377.0,0.76383454]
[1725182238802,0.02769104,58378.0,58377.0,0.89257806]
[1725182240815,0.000818,58378.0,58377.0,1.23517806]
[1725182241022,0.000818,58378.0,58377.0,0.89257806]
[1725182241238,0.000818,58378.0,58377.0,1.23517806]
[1725182241690,0.000818,58378.0,58377.0,1.23515023]
[1725182242582,0.000818,58378.0,58377.0,1.24015023]
[1725182242790,0.000818,58378.0,58377.0,1.58275023]
[1725182243020,0.000818,58378.0,58377.0,1.49314174]
[1725182243271,0.000818,58378.0,58377.0,1.84774174]
[1725182243927,0.000818,58378.0,58377.0,1.83974174]
[1725182244143,0.000818,58386.0,58377.0,1.83974174]
[1725182244144,0.000818,58386.0,58385.0,1.43983708]
[1725182244392,0.000818,58386.0,58385.0,1.64138872]
[1725182246101,0.000818,58386.0,58385.0,1.64338872]
[1725182247783,0.02768383,58386.0,58385.0,1.67138872]
[1725182248665,0.000818,58399.0,58388.0,1.44577808]
[1725182248874,0.000818,58399.0,58388.0,1.63651105]
[1725182250368,0.000818,58399.0,58388.0,1.74912679]
[1725182250806,0.000818,58399.0,58388.0,1.75312679]
[1725182251009,0.000818,58399.0,58388.0,1.76312679]
[1725182251225,0.000818,58399.0,58388.0,1.77912679]
[1725182251432,0.000818,58399.0,58388.0,1.67651105]
[1725182251861,0.000818,58399.0,58388.0,1.67451105]
[1725182253846,0.00818,58405.0,58403.0,0.236824]
[1725182253847,0.28060869,58404.0,58403.0,0.236824]
[1725182254055,0.00818,58405.0,58403.0,0.236824]
[1725182254056,0.00818,58405.0,58404.0,0.171221]
[1725182254924,0.00818,58405.0,58403.0,0.22666108]
[1725182255146,0.205699,58405.0,58403.0,0.066059]
[1725182255601,0.205699,58405.0,58403.0,0.007]
[1725182256086,0.205699,58405.0,58404.0,0.007]
[1725182256743,0.23256112,58405.0,58404.0,0.007]
[1725182258060,0.20626112,58405.0,58400.0,0.09500208]
[1725182258272,0.171221,58404.0,58400.0,0.09500208]
[1725182258506,0.171221,58404.0,58403.0,0.007]
[1725182258955,0.171221,58404.0,58400.0,0.09500208]
[1725182259366,0.171221,58404.0,58400.0,0.26623408]
[1725182260048,0.171221,58404.0,58403.0,0.007]
[1725182260691,0.171221,58404.0,58403.0,0.02732341]
[1725182261580,0.171221,58404.0,58403.0,0.03532341]
[1725182263171,0.171221,58404.0,58403.0,0.04232341]
[1725182263615,0.171221,58404.0,58403.0,0.015]
[1725182264051,0.19808322,58404.0,58403.0,0.015]
[1725182265793,0.19890122,58404.0,58403.0,0.015]
[1725182267456,0.19890122,58404.0,58403.0,0.0806]
[1725182269902,0.02768022,58404.0,58403.0,0.0806]
[1725182270807,0.000818,58404.0,58403.0,0.0806]
[1725182272294,0.000818,58404.0,58403.0,0.11528311]
[1725182281315,0.000818,58404.0,58403.0,0.28650711]
[1725182284098,0.0276797,58404.0,58403.0,0.28650711]
[1725182284304,0.0276797,58404.0,58403.0,1.06640519]
[1725182285351,0.0276797,58404.0,58403.0,1.13632325]
[1725182285770,0.0276797,58404.0,58403.0,1.15032325]
[1725182286464,0.00818,58405.0,58404.0,1.16734947]
[1725182286633,0.00818,58413.0,58412.0,0.513592]
[1725182286844,0.00818,58413.0,58412.0,0.652292]
[1725182287053,0.00818,58413.0,58412.0,1.07171573]
[1725182287277,0.00818,58413.0,58412.0,1.16323864]
[1725182287505,0.00818,58413.0,58412.0,1.26594361]
[1725182287976,0.00818,58413.0,58412.0,0.92354861]
[1725182288408,0.00818,58413.0,58412.0,0.91584572]
[1725182288610,0.00818,58413.0,58412.0,0.92984572]
[1725182288828,0.00818,58413.0,58412.0,1.27224072]
[1725182289109,0.342321,58425.0,58414.0,0.342381]
[1725182289110,0.342328,58424.0,58414.0,0.342381]
[1725182289334,0.171169,58422.0,58418.0,0.0638]
[1725182289560,0.342328,58424.0,58420.0,0.09500208]
[1725182289561,0.171163,58424.0,58420.0,0.09500208]
[1725182289772,0.342304,58428.0,58421.0,0.09041801]
[1725182289978,0.171162,58424.0,58421.0,0.09041801]
[1725182290188,0.342304,58428.0,58421.0,0.09041801]
[1725182290189,0.171159,58425.0,58421.0,0.09041801]
[1725182290430,0.342304,58428.0,58421.0,0.09041801]
[1725182290632,0.34232,58425.0,58421.0,0.0638]
[1725182290862,0.171165,58424.0,58421.0,0.0638]
[1725182291078,0.171165,58423.0,58421.0,0.0638]
[1725182291298,0.171165,58423.0,58421.0,0.08531735]
[1725182291730,0.171165,58423.0,58421.0,0.08731735]
[1725182291932,0.171165,58423.0,58421.0,0.08531735]
[1725182292567,0.171165,58423.0,58421.0,0.08931735]
[1725182293003,0.171168,58422.0,58421.0,0.0678]
[1725182293614,0.34232,58425.0,58421.0,0.0678]
[1725182293818,0.171166,58423.0,58421.0,0.0698]
[1725182294031,0.171168,58422.0,58421.0,0.0698]
[1725182294494,0.171168,58422.0,58421.0,0.0678]
[1725182294923,0.171168,58422.0,58421.0,0.0638]
[1725182295143,0.171168,58422.0,58421.0,0.0688]
[1725182295770,0.513504,58422.0,58421.0,0.0688]
[1725182295996,0.513504,58422.0,58421.0,0.005]
[1725182296900,0.513504,58422.0,58421.0,0.008]
[1725182300702,0.85584,58422.0,58421.0,0.008]
[1725182302058,0.85584,58422.0,58421.0,0.02468021]
[1725182302693,0.856657,58422.0,58421.0,0.02468021]
[1725182302915,0.514321,58422.0,58421.0,0.16358021]
[1725182304256,0.514321,58422.0,58421.0,0.1469]
[1725182304723,0.171985,58422.0,58421.0,0.1469]
[1725182306368,0.171985,58422.0,58421.0,0.24190208]
[1725182306598,0.000817,58422.0,58421.0,0.24190208]
[1725182307991,0.000817,58422.0,58421.0,0.76041508]
[1725182308229,0.000817,58422.0,58421.0,1.21645768]
[1725182308462,0.000817,58422.0,58421.0,1.21303449]
[1725182308704,0.000817,58422.0,58421.0,1.29000796]
[1725182308946,0.000817,58422.0,58421.0,1.21303449]
[1725182309460,0.000817,58422.0,58421.0,1.30766579]
[1725182309915,0.000817,58422.0,58421.0,1.32166579]
[1725182310374,0.000817,58422.0,58421.0,1.66400779]
[1725182310574,0.000817,58422.0,58421.0,1.65000779]
[1725182310851,0.000817,58422.0,58421.0,1.54737649]
[1725182311085,0.000817,58422.0,58421.0,1.58437649]
[1725182311311,0.000817,58422.0,58421.0,1.58537649]
[1725182311503,0.000817,58422.0,58421.0,1.58637649]
[1725182311972,0.000817,58422.0,58421.0,1.60037649]
[1725182312185,0.000817,58422.0,58421.0,1.16103241]
[1725182312425,0.000817,58422.0,58421.0,1.35859052]
[1725182312657,0.000817,58422.0,58421.0,1.34459052]
[1725182313076,0.000817,58422.0,58421.0,1.35859052]
[1725182313498,0.000817,58422.0,58421.0,1.25603449]
[1725182314262,0.000817,58422.0,58421.0,1.25693429]
[1725182317856,0.000817,58422.0,58421.0,1.60927629]
[1725182318060,0.000817,58422.0,58421.0,1.73743576]
[1725182319273,0.000817,58422.0,58421.0,1.61943368]
[1725182319486,0.000817,58422.0,58421.0,1.73743576]
[1725182320383,0.000817,58422.0,58421.0,1.95161829]
[1725182320604,0.000817,58422.0,58421.0,1.95361829]
[1725182321417,0.000817,58422.0,58421.0,1.93961829]
[1725182322153,0.000817,58422.0,58421.0,1.95161829]
[1725182322344,0.000817,58422.0,58421.0,1.95361829]
[1725182322544,0.000817,58422.0,58421.0,1.93961829]
[1725182323368,0.000817,58422.0,58421.0,1.92561829]
[1725182323764,0.000817,58422.0,58421.0,1.93961829]
[1725182324556,0.000817,58422.0,58421.0,1.95361829]
[1725182324771,0.000817,58422.0,58421.0,1.96805935]
[1725182324978,0.000817,58422.0,58421.0,3.22285935]
[1725182326686,0.000817,58422.0,58421.0,3.37662189]
[1725182327128,0.000817,58422.0,58421.0,3.22285935]
[1725182332490,0.000817,58422.0,58421.0,3.24860003]
[1725182336362,0.000817,58422.0,58421.0,3.2486009]
[1725182337267,0.000817,58422.0,58421.0,3.2466009]
[1725182337504,0.000817,58422.0,58421.0,2.8812589]
[1725182337732,0.000817,58422.0,58421.0,3.00931986]
[1725182337925,0.000817,58422.0,58421.0,2.85551735]
[1725182338408,0.000817,58422.0,58421.0,3.00931986]
[1725182338944,0.000817,58422.0,58421.0,3.03231986]
[1725182339187,0.025735,58433.0,58424.0,0.01]
[1725182339439,0.025735,58433.0,58432.0,0.14627304]
[1725182339653,0.025735,58433.0,58432.0,0.14627494]
[1725182340806,0.025735,58433.0,58432.0,0.06527286]
[1725182341049,0.933215,58433.0,58432.0,0.014]
[1725182341283,1.3023357,58433.0,58432.0,0.014]
[1725182341764,1.4023357,58433.0,58432.0,0.014]
[1725182341982,1.4023357,58433.0,58432.0,0.028]
[1725182342226,1.47048908,58433.0,58432.0,0.028]
[1725182343387,1.47048908,58433.0,58432.0,0.014]
[1725182343827,1.47048908,58433.0,58432.0,0.028]
[1725182344109,1.47048908,58433.0,58432.0,0.014]
[1725182344579,1.47048908,58433.0,58432.0,0.027]
[1725182346149,1.49734057,58433.0,58432.0,0.027]
[1725182347347,1.40233849,58433.0,58432.0,0.027]
[1725182347607,2.25419157,58433.0,58432.0,0.027]
[1725182348079,2.39690257,58433.0,58432.0,0.027]
[1725182348533,2.39690257,58433.0,58432.0,0.014]
[1725182348774,2.39690257,58433.0,58432.0,0.022]
[1725182348999,2.39690257,58433.0,58432.0,0.008]
[1725182349240,2.25318757,58433.0,58432.0,0.008]
[1725182350541,2.02130957,58433.0,58432.0,0.008]
[1725182350744,2.02130957,58433.0,58432.0,0.018]
[1725182350885,2.02330957,58433.0,58432.0,0.018]
[1725182351095,2.84410257,58433.0,58432.0,0.018]
[1725182351547,2.84292057,58433.0,58432.0,0.018]
[1725182353912,2.79133057,58433.0,58432.0,0.018]
[1725182354148,2.37383057,58433.0,58432.0,0.018]
[1725182356130,2.34697908,58433.0,58432.0,0.018]
[1725182356349,2.34897908,58433.0,58432.0,0.018]
[1725182357043,2.34697908,58433.0,58432.0,0.018]
[1725182357883,2.37383128,58433.0,58432.0,0.018]
[1725182359289,1.84043128,58433.0,58432.0,0.018]
[1725182360772,1.81357908,58433.0,58432.0,0.018]
[1725182361763,2.00044508,58433.0,58432.0,0.018]
[1725182362429,1.99834508,58433.0,58432.0,0.018]
[1725182364135,2.02519726,58433.0,58432.0,0.018]
[1725182366252,1.97339726,58433.0,58432.0,0.018]
[1725182367158,1.87839518,58433.0,58432.0,0.018]
[1725182367377,1.97539726,58433.0,58432.0,0.018]
[1725182369244,2.06939596,58433.0,58432.0,0.018]
[1725182370298,2.06939596,58433.0,58432.0,0.01]
[1725182370769,2.04254378,58433.0,58432.0,0.01]
[1725182370970,2.04354378,58433.0,58432.0,0.01]
[1725182372055,0.101818,58433.0,58425.0,0.09590188]
[1725182372255,0.1,58432.0,58428.0,0.09500208]
[1725182372530,0.1,58432.0,58427.0,0.1413]
[1725182372734,0.1,58432.0,58428.0,0.0657]
[1725182372735,0.271139,58432.0,58428.0,0.0657]
[1725182373161,0.171142,58431.0,58428.0,0.0657]
[1725182373718,0.171142,58431.0,58428.0,0.0727]
[1725182374142,0.171142,58431.0,58428.0,0.0737]
[1725182375588,0.19799236,58431.0,58428.0,0.0737]
[1725182375793,0.19799236,58431.0,58428.0,0.0667]
[1725182375994,0.19799236,58431.0,58428.0,0.0657]
[1725182376436,0.171145,58430.0,58428.0,0.0727]
[1725182376637,0.513442,58429.0,58428.0,0.0727]
[1725182376845,0.513442,58429.0,58428.0,0.0807]
[1725182376846,0.855737,58429.0,58428.0,0.0807]
[1725182377570,0.855737,58429.0,58428.0,0.0737]
[1725182377934,0.855737,58429.0,58428.0,0.0817]
[1725182378876,0.855737,58429.0,58428.0,0.0737]
[1725182379295,0.855737,58429.0,58428.0,0.0837]
[1725182379720,0.855737,58429.0,58428.0,0.0757]
[1725182380264,0.855737,58429.0,58428.0,0.0847]
[1725182380700,0.343093,58433.0,58429.0,0.0756]
[1725182380701,0.171144,58430.0,58429.0,0.0756]
[1725182381500,0.171144,58430.0,58429.0,0.19257791]
[1725182382563,0.000818,58433.0,58430.0,0.0657]
[1725182382564,0.171141,58432.0,58430.0,0.0657]
[1725182382775,0.171141,58432.0,58430.0,0.05137136]
[1725182382978,0.171954,58433.0,58431.0,0.0657]
[1725182383406,0.171954,58433.0,58431.0,0.11707136]
[1725182384154,0.28182518,58434.0,58431.0,0.0657]
[1725182384373,0.00818,58437.0,58433.0,0.0657]
[1725182384576,0.171132,58435.0,58433.0,0.0657]
[1725182384778,0.171132,58435.0,58433.0,0.08407303]
[1725182384995,0.171133,58434.0,58433.0,0.01837303]
[1725182385447,0.171133,58434.0,58433.0,0.08407303]
[1725182387128,0.171133,58434.0,58433.0,0.0657]
[1725182387341,0.00818,58437.0,58433.0,0.0657]
[1725182387554,0.02684824,58434.0,58433.0,0.0657]
[1725182388017,0.02684824,58434.0,58433.0,0.0697]
[1725182388885,0.02684824,58434.0,58433.0,0.0737]
[1725182389321,0.02684824,58434.0,58433.0,0.1160775]
[1725182389819,0.02684824,58434.0,58433.0,0.1120775]
[1725182390675,0.171131,58435.0,58433.0,0.1120775]
[1725182391323,0.171131,58435.0,58433.0,0.0737]
[1725182391794,0.171131,58435.0,58433.0,0.0657]
[1725182392251,0.171131,58435.0,58433.0,0.0687]
[1725182393875,0.1979792,58435.0,58433.0,0.0687]
[1725182394281,0.1979792,58435.0,58433.0,0.0717]
[1725182399811,0.0268482,58435.0,58434.0,0.1401]
[1725182400279,0.0268482,58435.0,58433.0,0.05728865]
[1725182400280,0.171133,58434.0,58433.0,0.006]
[1725182400488,0.171133,58434.0,58433.0,0.0068998]
[1725182400946,0.855665,58434.0,58433.0,0.0068998]
[1725182401308,1.197931,58434.0,58433.0,0.0038998]
[1725182401356,1.58833486,58434.0,58433.0,0.0038998]
[1725182401556,1.68833486,58434.0,58433.0,0.0038998]
[1725182401793,1.68833486,58434.0,58433.0,0.0008998]
[1725182402582,1.373431,58434.0,58433.0,0.0048998]
[1725182403269,1.321631,58434.0,58433.0,0.0088998]
[1725182403483,1.297931,58434.0,58433.0,0.0088998]
[1725182403702,1.297931,58434.0,58433.0,0.0048998]
[1725182403920,1.689187,58434.0,58433.0,0.0048998]
[1725182404773,1.689187,58434.0,58433.0,0.0008998]
[1725182405214,1.71603935,58434.0,58433.0,0.0038998]
[1725182405634,1.71603935,58434.0,58433.0,0.0048998]
[1725182406142,1.48825735,58434.0,58433.0,0.0048998]
[1725182406396,1.48825735,58434.0,58433.0,0.0098998]
[1725182407284,1.14599135,58434.0,58433.0,0.0728998]
[1725182407491,0.64025135,58434.0,58433.0,0.0728998]
[1725182409122,0.98251735,58434.0,58433.0,0.0098998]
[1725182414873,0.955665,58434.0,58433.0,0.0098998]
[1725182418667,0.98251457,58434.0,58433.0,0.0098998]
[1725182420790,0.98251457,58434.0,58433.0,0.1543998]
[1725182421187,0.29798257,58434.0,58433.0,0.16992976]
[1725182423046,0.29798257,58434.0,58433.0,0.1543998]
[1725182423258,0.64024857,58434.0,58433.0,0.1543998]
[1725182423863,0.271133,58434.0,58433.0,0.1543998]
[1725182427172,0.29798156,58434.0,58433.0,0.1543998]
[1725182428325,0.19798156,58434.0,58433.0,0.1543998]
[1725182429848,0.171133,58434.0,58433.0,0.1543998]
[1725182433150,0.02684827,58434.0,58433.0,0.1543998]
[1725182433366,0.02684827,58434.0,58433.0,0.71329395]
[1725182433622,0.02684827,58434.0,58433.0,1.15830025]
[1725182433830,0.000818,58436.0,58435.0,0.99405]
[1725182434071,0.000818,58436.0,58435.0,1.23772308]
[1725182435222,0.000818,58436.0,58435.0,1.57998308]
[1725182435654,0.000818,58436.0,58435.0,1.59198308]
[1725182437144,0.000818,58436.0,58435.0,1.60798308]
[1725182437601,0.000818,58436.0,58435.0,1.73619555]
[1725182437826,0.000818,58436.0,58435.0,1.73619563]
[1725182438479,0.000818,58436.0,58435.0,1.58252463]
[1725182439364,0.000818,58436.0,58435.0,1.11205208]
[1725182440048,0.000818,58436.0,58435.0,1.2146394]
[1725182440262,0.000818,58436.0,58435.0,1.21462626]
[1725182441460,0.000818,58436.0,58435.0,1.21460743]
[1725182441696,0.000818,58436.0,58435.0,1.38315907]
[1725182442118,0.000818,58436.0,58435.0,1.73041907]
[1725182442565,0.000818,58436.0,58435.0,1.7560579]
[1725182442981,0.000818,58436.0,58435.0,1.62786372]
[1725182443884,0.000818,58436.0,58435.0,1.64186372]
[1725182444062,0.000818,58436.0,58435.0,1.63086372]
[1725182444219,0.000818,58436.0,58435.0,1.61686372]
[1725182444430,0.000818,58436.0,58435.0,1.62886372]
[1725182445026,0.000818,58436.0,58435.0,1.63086372]
[1725182445230,0.000818,58436.0,58435.0,1.61486372]
[1725182445713,0.000818,58436.0,58435.0,1.64313426]
[1725182446399,0.000818,58436.0,58435.0,1.65713426]
[1725182446819,0.000818,58436.0,58435.0,1.64313426]
[1725182447164,0.000818,58436.0,58435.0,1.78517292]
[1725182447635,0.000818,58436.0,58435.0,1.77117292]
[1725182448527,0.000818,58436.0,58435.0,2.11343292]
[1725182448753,0.000818,58436.0,58435.0,1.78517292]
[1725182449398,0.000818,58436.0,58435.0,1.77117292]
[1725182449604,0.000818,58436.0,58435.0,1.78517292]
[1725182450620,0.000818,58436.0,58435.0,1.78717292]
[1725182451330,0.000818,58436.0,58435.0,2.00139426]
[1725182451546,0.000818,58436.0,58435.0,2.12939898]
[1725182451754,0.000818,58436.0,58435.0,2.00139426]
[1725182454170,0.000818,58436.0,58435.0,2.12937761]
[1725182456268,0.000818,58436.0,58435.0,2.00139426]
[1725182456473,0.00818,58445.0,58444.0,1.197724]
[1725182456768,0.00818,58445.0,58444.0,1.43762608]
[1725182456968,0.00818,58445.0,58444.0,1.51940186]
[1725182457378,0.00818,58445.0,58444.0,1.81983308]
[1725182457789,0.00818,58445.0,58444.0,1.94579272]
[1725182457997,0.00818,58445.0,58444.0,2.11434436]
[1725182458768,0.00818,58445.0,58444.0,2.11934436]
[1725182459004,0.00818,58445.0,58444.0,2.12134436]
[1725182459205,0.00818,58445.0,58444.0,1.99338472]
[1725182459628,0.00818,58445.0,58444.0,2.00736484]
[1725182461112,0.00818,58445.0,58444.0,2.13532448]
[1725182461393,0.00818,58445.0,58444.0,2.00736484]
[1725182461598,0.00818,58445.0,58444.0,2.00536484]
[1725182461804,0.00592953,58445.0,58444.0,3.26216484]
[1725182463565,0.2771942,58461.0,58457.0,0.171064]
[1725182463774,0.0237,58462.0,58457.0,0.171064]
[1725182464197,0.171056,58461.0,58455.0,0.26607308]
[1725182464404,0.171056,58461.0,58455.0,0.09500208]
[1725182464405,0.171062,58459.0,58455.0,0.09500208]
[1725182464823,0.222855,58461.0,58455.0,0.26607208]
[1725182465033,0.17106,58459.0,58455.0,0.09500208]
[1725182465230,0.17106,58459.0,58455.0,0.16234569]
[1725182465435,0.171063,58458.0,58455.0,0.16234569]
[1725182466718,0.171063,58458.0,58457.0,0.006]
[1725182466925,0.171063,58458.0,58457.0,0.007]
[1725182467131,0.171063,58458.0,58457.0,0.006]
[1725182467339,0.17106,58459.0,58455.0,0.09500208]
[1725182467561,0.17106,58459.0,58455.0,0.09900208]
[1725182467809,0.17106,58459.0,58456.0,0.02700751]
[1725182468225,0.02683592,58459.0,58456.0,0.19807451]
[1725182468443,0.02683592,58459.0,58456.0,0.02700751]
[1725182468936,0.00818,58463.0,58462.0,0.171051]
[1725182469178,0.00818,58463.0,58462.0,0.81896289]
[1725182469413,0.00818,58463.0,58462.0,1.09395708]
[1725182471019,0.00818,58463.0,58462.0,0.67105508]
[1725182471227,0.00818,58463.0,58462.0,0.028]
[1725182472539,0.521324,58463.0,58462.0,0.028]
[1725182472998,0.545024,58463.0,58462.0,0.028]
[1725182475686,0.521324,58463.0,58462.0,0.028]
[1725182476002,0.54815987,58463.0,58462.0,0.028]
[1725182478445,0.89025587,58463.0,58462.0,0.028]
[1725182480559,0.94205587,58463.0,58462.0,0.028]
[1725182482512,0.89025587,58463.0,58462.0,0.028]
[1725182483684,1.43085187,58463.0,58462.0,0.028]
[1725182483923,1.404016,58463.0,58462.0,0.028]
[1725182484147,1.746112,58463.0,58462.0,0.028]
[1725182484392,2.234247,58463.0,58462.0,0.028]
[1725182484612,2.234247,58463.0,58462.0,0.014]
[1725182485035,2.236247,58463.0,58462.0,0.004]
[1725182485509,2.234247,58463.0,58462.0,0.018]
[1725182485785,2.236247,58463.0,58462.0,0.018]
[1725182486002,2.236247,58463.0,58462.0,0.004]
[1725182486431,2.39413272,58463.0,58462.0,0.004]
[1725182486636,2.39413272,58463.0,58462.0,0.013]
[1725182487499,2.42097276,58463.0,58462.0,0.013]
[1725182488014,2.42097276,58463.0,58462.0,0.009]
[1725182488443,2.42197276,58463.0,58462.0,0.009]
[1725182488648,0.513303,58445.0,58444.0,0.0008998]
[1725182489551,0.54014523,58445.0,58444.0,0.0008998]
[1725182490188,0.54014523,58445.0,58444.0,0.0148998]
[1725182490618,0.88234723,58445.0,58444.0,0.0148998]
[1725182490828,0.855505,58445.0,58444.0,0.0148998]
[1725182491284,0.855505,58445.0,58444.0,0.03549392]
[1725182491497,0.855505,58445.0,58444.0,0.0148998]
[1725182492166,0.171101,58445.0,58444.0,0.0288998]
[1725182492368,0.855505,58445.0,58444.0,0.0908998]